{"text_format":"3","workbook":"xlsx","n_sheets":1,"sheets":["删"],"not_rendered":{"defined_names":2},"read":"whole","date_system":"1900"}

{"sheet":"删","index":0,"n_rows":99,"n_cols":21,"rows_kept":99,"merged":[[0,0,0,20],[1,0,4,0],[1,1,4,1],[1,2,4,2],[1,3,3,4],[1,5,4,5],[1,6,4,6],[1,7,4,7],[1,8,4,8],[1,9,4,12],[1,13,1,19],[1,20,4,20],[2,13,4,13],[2,14,3,18],[2,19,4,19],[5,3,5,4],[5,9,5,12],[6,3,6,4],[6,9,6,12],[7,3,7,4],[7,9,7,12],[8,3,8,4],[8,9,8,12],[9,3,9,4],[9,9,9,12],[10,3,10,4],[10,9,10,12],[11,3,11,4],[11,9,11,12],[12,9,12,12],[13,9,13,12],[14,9,14,12],[15,9,15,12],[16,9,16,12],[17,9,17,12],[18,9,18,12],[19,9,19,12],[20,9,20,12],[21,3,21,4],[21,9,21,12],[22,9,22,12],[23,9,23,12],[24,9,24,12],[25,9,25,12],[26,9,26,12],[27,9,27,12],[28,9,28,12],[29,9,29,12],[30,9,30,12],[31,9,31,12],[32,9,32,12],[33,3,33,4],[33,9,33,12],[34,9,34,12],[35,9,35,12],[36,9,36,12],[37,9,37,12],[38,9,38,12],[39,9,39,12],[40,9,40,12],[41,9,41,12],[42,9,42,12],[43,9,43,12],[44,9,44,12],[45,9,45,12],[46,9,46,12],[47,9,47,12],[48,9,48,12],[49,9,49,12],[50,9,50,12],[51,9,51,12],[52,9,52,12],[53,9,53,12],[54,9,54,12],[55,9,55,12],[56,9,56,12],[57,9,57,12],[58,9,58,12],[59,9,59,12],[60,9,60,12],[61,9,61,12],[62,9,62,12],[63,3,63,4],[63,9,63,12],[64,3,64,4],[64,9,64,12],[65,3,65,4],[65,9,65,12],[66,3,66,4],[66,9,66,12],[67,3,67,4],[67,9,67,12],[68,3,68,4],[68,9,68,12],[69,3,69,4],[69,9,69,12],[70,9,70,12],[71,9,71,12],[72,9,72,12],[73,9,73,12],[74,9,74,12],[75,9,75,12],[76,9,76,12],[77,9,77,12],[78,9,78,12],[79,9,79,12],[80,9,80,12],[81,9,81,12],[82,9,82,12],[83,9,83,12],[84,9,84,12],[85,9,85,12],[86,3,86,4],[86,9,86,12],[87,9,87,12],[88,9,88,12],[89,9,89,12],[90,9,90,12],[91,9,91,12],[92,9,92,12],[93,9,93,12],[94,9,94,12],[95,9,95,12],[96,3,96,4],[96,9,96,12],[97,9,97,12],[98,9,98,12]]}
["盐边县2024年度各级财政衔接推进乡村振兴补助资金项目计划表"]
["序号","项目类别","项目名称","项目建设地点",null,"项目建设内容及规模","单位","规模","补助标准","群众参与和利益联结机制",{"$nulls":3},"计划投资（万元）",{"$nulls":6},"项目实施责任单位"]
[{"$nulls":13},"合计","财政衔接资金补助",{"$nulls":4},"自筹或其他资金"]
[]
[{"$nulls":3},"乡（镇）","村",{"$nulls":9},"小计","中央资金","省级资金","市级资金","县级资金"]
["合计",{"$nulls":12},{"$f":"O6+T6","v":{"v":14305.43182,"d":"14305.43"}},{"$f":"P6+Q6+R6+S6","v":{"v":8892.8776,"d":"8892.88"}},{"$f":"SUM(P7:P99)","v":{"v":1575,"d":"1575.00"}},{"v":5203.9976,"d":"5204.00"},813.88,{"v":1300,"d":"1300.00"},{"v":5412.55422,"d":"5412.55"}]
[1,"易地搬迁后扶","易地扶贫搬迁贷款贴息项目","全县",null,"计划实施易地扶贫搬迁贷款贴息资金项目1个，对全县易地扶贫搬迁脱贫户贷款贴息补助。项目计划总投资479.35万元，此次安排资金415.35万元，待安排资金64万元。","项",1,"按照实际贷款金额贴息","解决全县900户易地扶贫搬迁户及配套基础设施资金短缺问题，有效巩固脱贫成果",{"$nulls":3},479.35,479.35,{"$f":"390+59.4","v":{"v":449.4,"d":"449.40"}},{"$f":"25.35+4.6","v":29.95},{"$nulls":3},"县发展集团"]
[2,"就业项目","山洪灾害危险区责任人公益性岗位安置项目","全县",null,"计划实施全县山洪灾害危险区公益性岗位安置项目1个，据实安置山洪灾害危险区脱贫户、监测户公益性岗位。","项",1,"按照实际安置岗位人数进行补助","保障全县山洪灾害危险区公益性岗位人员经费，增加就业务工收入，巩固脱贫成果。",{"$nulls":3},{"v":33,"d":"33.00"},{"v":33,"d":"33.00"},null,{"v":33,"d":"33.00"},{"$nulls":3},"县水利局"]
[3,"就业项目","公益性岗位安置","全县",null,"全县12个乡镇新增安置脱贫户、监测户公益性岗位525人。","项",1,"公益性岗位补贴每人每月400元","该项目实施可有效解决农户525人，其中脱贫户400人、监测户125人的就业问题，每户实现年增收4800元，促进地方经济发展，巩固脱贫成效，衔接推进乡村振兴。",{"$nulls":3},{"v":252,"d":"252.00"},{"v":252,"d":"252.00"},null,{"v":252,"d":"252.00"},{"$nulls":3},"县人力资源和社会保障局"]
[4,"巩固三保障成果","雨露计划补助","全县",null,"计划实施雨露计划补助项目1项，对全县脱贫户及监测对象（脱贫不稳定户、边缘易致贫户、突发严重困难户）中符合条件的中、高职学生发放雨露计划补助。","项",1,"每人每学期补助1500元","有效解决脱贫户及监测对象子女教育保障问题，进一步隔断贫困代际传递。",{"$nulls":3},{"v":252.9308,"d":"252.93"},{"v":252.9308,"d":"252.93"},null,{"v":110.9308,"d":"110.93"},{"v":110,"d":"110.00"},{"v":32,"d":"32.00"},null,"县农业农村局"]
[5,"巩固三保障成果","防贫保项目","全县",null,"为家庭人均纯收入在10000元以下脱贫户、监测户1233人购买防贫保险，每人补助412元。","人",1233,"每人补助412元","防止监测户因病、因灾、因意外事故等导致返贫致贫，切实巩固提升脱贫成效。",{"$nulls":3},{"v":50.7996,"d":"50.80"},{"v":50.7996,"d":"50.80"},null,{"v":50.7996,"d":"50.80"},{"$nulls":3},"县农业农村局"]
[6,"项目管理费","项目管理费","全县",null,"计划实施全县项目管理费项目1项，用于全县巩固拓展脱贫攻坚成果及衔接推进乡村振兴项目设计、监理及项目管理、验收等费用。","项",1,"按照不超过1%的比例提取","确保项目顺利实施，促进地方经济发展，巩固脱贫成效。",{"$nulls":3},{"v":72.4,"d":"72.40"},{"v":72.4,"d":"72.40"},{"$f":"12+0.6","v":{"v":12.6,"d":"12.60"}},{"$f":"33+6","v":{"v":39,"d":"39.00"}},{"v":7.8,"d":"7.80"},{"v":13,"d":"13.00"},null,"县农业农村局"]
[7,"产业发展","大湾村红骨羊养殖项目","格萨拉彝族乡","大湾村","拟建羊圈1000余平方米，预估价50万元；购买种羊、母羊300只，预估价2000元/只，预计投入60万元；人工种植茜草10亩，预估投入10万元：后期专家服务、饲料、药品及其他预计投入30万元。项目总投资150万元，其中：财政扶持资金150万元。","个",1,"每村补助110万元","解决村集体经济发展瓶颈问题，进一步发展壮大村集体经济，带动脱贫户、监测户生产和务工就业，巩固脱贫成果，有效衔接推进乡村振兴。",{"$nulls":3},{"v":150,"d":"150.00"},{"v":110,"d":"110.00"},{"v":70,"d":"70.00"},{"v":40,"d":"40.00"},null,null,{"v":40,"d":"40.00"},"格萨拉彝族乡"]
[8,"产业发展","广东湾村鹌鹑养殖示范基地项目","红宝苗族彝族乡","广东湾村","拟盘活广东湾村集体闲置土地，发展特色鹌鹑养殖业，修建鸟笼、清粪设施、厂房配套设施，配套建设动物无害化处理及粪便无害化处理设备设施。通过与四川九升食品有限公司合作，由公司提供养殖、育雏技术指导，回收鹌鹑蛋和肉，该项目每年预计为集体增收约 30 万元，同步带动本村及周边 20 余名村民就业，实现农民收入持续增长。","个",1,"每村补助110万元","解决村集体经济发展瓶颈问题，进一步发展壮大村集体经济，带动脱贫户、监测户生产和务工就业，巩固脱贫成果，有效衔接推进乡村振兴。",{"$nulls":3},{"v":150,"d":"150.00"},{"v":110,"d":"110.00"},{"v":70,"d":"70.00"},{"v":40,"d":"40.00"},null,null,{"v":40,"d":"40.00"},"红宝乡"]
[9,"产业发展","建新村生态种养及农业社会化服务项目","惠民镇","建新村","一是充分发掘利用建新村当地资源，实施“稻田养鱼、稻瓜轮作”项目。项目预计投资65.2万，包括：前期土地流转80亩，每亩2200元，前两年租金35.2万元；完善养鱼设施建设20万元；购买鱼苗资金10万元。二是集体租赁村民土地1.5亩，购置设备成立农业社会化服务队，为村民开展农业社会化服务，估算投资84.8万元，包括：购买插秧机1台，收割机1台，小型装载机1台，小型挖掘机1台，无人机喷药设备1套，稻谷烘干机1套，需资金约49.8万元；购置安装农产品交易电子秤1套，新建稻谷储藏仓库100平米，新建厂房350平米，安装标识标牌等需资金约35万元。","个",1,"每村补助110万元","解决村集体经济发展瓶颈问题，进一步发展壮大村集体经济，带动脱贫户、监测户生产和务工就业，巩固脱贫成果，有效衔接推进乡村振兴。",{"$nulls":3},{"v":150,"d":"150.00"},{"v":110,"d":"110.00"},{"v":70,"d":"70.00"},{"v":40,"d":"40.00"},null,null,{"v":40,"d":"40.00"},"惠民镇"]
[10,"产业发展","新毕村河道渔业增殖管养项目","国胜乡","新毕村","利用新坪河河道，发展特色养殖细甲鱼，拟前期一次性投入鱼苗30万尾，预计25万余元；建设鱼苗育苗场1个，预计资金20万元；电子监控设备30余台，预计20万元；结合新毕村河道实际情况打造旅游休闲摸鱼项目，建设垂钓台10座预计40万余元，养鱼河道治理及设施完善预计42万元。项目总投资152万元，其中：财政扶持资金150万元，村集体自筹资金2万元。","个",1,"每村补助110万元","解决村集体经济发展瓶颈问题，进一步发展壮大村集体经济，带动脱贫户、监测户生产和务工就业，巩固脱贫成果，有效衔接推进乡村振兴。",{"$nulls":3},{"v":150,"d":"150.00"},{"v":110,"d":"110.00"},{"v":70,"d":"70.00"},{"v":40,"d":"40.00"},null,null,{"v":40,"d":"40.00"},"国胜乡"]
[11,"产业发展","苍蒲村生态养鱼项目","永兴镇","苍蒲村","投入资金150万元，进行渔业生态打造：一是打造集体辖区范围内5公里长苍蒲河，建设生态鱼种苗繁殖基地，发展特色生态鱼养殖。二是整治廖家河堰塘长（28米，宽6米，水深2.5米），转塘堰头（长20米，宽8米，水深2米），罗荡塘子（长15米，宽5米，水深2米），购买种苗进行生态养殖。三是购置及安装摄像头、网线、电杆等监控设备，优先聘请有技术有能力脱贫户、监测户、困难群体加强生态养殖管护。项目总投资150万元，其中：财政扶持资金150万元。","个",1,"每村补助110万元","解决村集体经济发展瓶颈问题，进一步发展壮大村集体经济，带动脱贫户、监测户生产和务工就业，巩固脱贫成果，有效衔接推进乡村振兴。",{"$nulls":3},{"v":150,"d":"150.00"},{"v":110,"d":"110.00"},{"v":70,"d":"70.00"},{"v":40,"d":"40.00"},null,null,{"v":40,"d":"40.00"},"永兴镇"]
[12,"产业发展","江西村优质母牛养殖项目","永兴镇","江西村","一是投资134万元，按照每头2.68万元的标准，引进怀孕三个月的雅拉德荣公司海福特母牛50头；二是在江西村选择养殖条件相对较好的养殖场进行合作代养，由规模养殖场从脱贫户、监测户中聘请4至6名养殖人员进行饲养，净收益养殖场与集体经济组织按投资比例分成；三是投入16万元作为防疫、养殖保险、饲草饲料等使用。项目总投资150万元，其中：财政扶持资金150万元。","个",1,"每村补助110万元","解决村集体经济发展瓶颈问题，进一步发展壮大村集体经济，带动脱贫户、监测户生产和务工就业，巩固脱贫成果，有效衔接推进乡村振兴。",{"$nulls":3},{"v":150,"d":"150.00"},{"v":110,"d":"110.00"},{"v":70,"d":"70.00"},{"v":40,"d":"40.00"},null,null,{"v":40,"d":"40.00"},"永兴镇"]
[13,"产业发展","林海村三千寨“共富笮坊”建设项目","共和乡","林海村","一是购置榨油设备：炒锅2.2万元，破碎机4万元，榨油机设备22万元，食用油精炼设备35万元，离心式滤油机5万元，定量灌装机10万元、吹瓶机1.8万元，食用油化验设备14万元，合计94万。二是生产包装腊肉、香肠、野生菌等农特产品，改造无菌生产包装车间2间，预计14万；改造冷库2间，预计30万元，购买肉类生产设备1套，预计12万元；改造成品储物间2间，预计10万元，合计66万元，自筹10万元作为物资采购成本。项目总投资160万元，其中：财政扶持资金150万元，村集体自筹资金10万元。","个",1,"每村补助110万元","解决村集体经济发展瓶颈问题，进一步发展壮大村集体经济，带动脱贫户、监测户生产和务工就业，巩固脱贫成果，有效衔接推进乡村振兴。",{"$nulls":3},{"v":150,"d":"150.00"},{"v":110,"d":"110.00"},{"v":70,"d":"70.00"},{"v":40,"d":"40.00"},null,null,{"v":40,"d":"40.00"},"共和乡"]
[14,"产业发展","蒿枝坪村烤烟烤房配套设施建设项目","红果彝族乡","蒿枝坪村","一是蒿枝坪村荞地菁组（红民烟叶收购站上行500米）新建连体烤烟烘烤房20座，地面硬化500㎡，烤房彩钢棚设置1300㎡，建设回烟配套房屋1套（80㎡，含看护住房2间、厨房、厕所等）等设施，预计投资：120万元（其中基础设施建设资金80万元，烘烤配套设备40万元）；二是蒿枝坪村上马鹿塘组（刘正安家旁）新建连体烤烟烘烤房10座，地面硬化250㎡，烤房彩钢棚设置260㎡等设施，预计投资：55万元（其中基础设施建设资金35万元，烘烤配套设备20万元）；三是蒿枝坪村锅底凼组（罗体古旁）新建连体烤烟烘烤房10座，地面硬化250㎡，烤房彩钢棚设置260㎡等设施，预计投资：55万元（其中基础设施建设资金35万元，烘烤配套设备20万元）。项目总投资230万元，其中财政扶持资金150万元，县级烟草部门配套烘烤设备折资80万元。","个",1,"每村补助110万元","解决村集体经济发展瓶颈问题，进一步发展壮大村集体经济，带动脱贫户、监测户生产和务工就业，巩固脱贫成果，有效衔接推进乡村振兴。",{"$nulls":3},{"v":150,"d":"150.00"},{"v":110,"d":"110.00"},{"v":70,"d":"70.00"},{"v":40,"d":"40.00"},null,null,{"v":40,"d":"40.00"},"红果彝族乡"]
[15,"产业发展","小坪村标准化蔬菜生产基地建设项目","国胜乡","小坪村","在小坪村建设现代化农业社会化服务体系，整合周边现有300亩土地，通过资源入股的方式与攀枝花市嘉慧农资供应链管理有限公司合作，建设1个标准化蔬菜生产基地，为盐边县北部地区学校食堂及机关食堂提供食材供应。一是购置中型旋耕机1台7万余元、大型1台15万余元、除草设备5台1万余元，农业辅助机具微型挖掘机1台10万余元，新建水立柱大棚25亩，2万元/亩，需资金50万元，共需资金83万元。二是安装水肥一体化2300元/亩，计300亩，需资金69万元。三是攀枝花市嘉慧农资供应链管理有限公司投入资金338万元，新建水立柱大棚25亩，2万元/亩，需资金50万元；支付300亩土地每年租金270万元/年；智能农业系统建模等费用18万元。项目总投资490万元，其中：财政扶持资金150万元，村集体自筹2万元，攀枝花市嘉慧农资供应链管理有限公司投入338万元。","个",1,"每村补助110万元","解决村集体经济发展瓶颈问题，进一步发展壮大村集体经济，带动脱贫户、监测户生产和务工就业，巩固脱贫成果，有效衔接推进乡村振兴。",{"$nulls":3},{"v":150,"d":"150.00"},{"v":110,"d":"110.00"},{"v":70,"d":"70.00"},{"v":40,"d":"40.00"},null,null,{"v":40,"d":"40.00"},"国胜乡"]
[16,"产业发展","脱贫户小额信贷贴息项目","全县",null,"计划实施2024年全县脱贫户小额信贷贴息资金项目1个，对全县脱贫户扶贫小额信贷予以贴息，目前贷款余额492笔1535.32万元。","项",1,"按照实际贷款金额贴息","解决脱贫户扶贫小额信贷贴息资金，巩固脱贫成效。",{"$nulls":3},{"v":74,"d":"74.00"},{"v":74,"d":"74.00"},{"v":74,"d":"74.00"},{"$nulls":4},"县农业农村局"]
[17,"产业发展","产业巩固提升项目","国胜乡","新毕村、大石房村、大毕村、 民胜村、机房村、小坪村、淘水村、梭罗村","一是计划实施帮扶大毕村朱邦明户等20户产业发展养殖生猪53头、养殖羊5只、养殖鸡130只；二是计划实施帮扶大石房村李君才户等6户产业发展养殖生猪23头、养殖鸡30只；三是计划实施帮扶机房村侯子国户等11户产业发展养殖生猪28头、养殖鸡50只；四是计划实施帮扶民胜村丁志才户等14户产业发展养殖43只；五是计划实施帮扶梭罗村何胜云户等5户产业发展养殖生猪10头、养殖羊4只、养殖鸡30只；六是计划实施帮扶淘水村何盛兵户等3户产业发展养殖生猪6头、养殖羊3只；七是计划实施帮扶小坪村曾下强户等10户产业发展养殖生猪18头、养殖羊12只、养殖鸡70只；八是计划实施帮扶新毕村龙友国户等6户产业发展养殖生猪12头、养殖羊4只、养殖鸡125只。","项",1,"按照实际完成工程量进行补助","该项目促进脱贫户、监测户帮扶对象持续稳定增加收入，巩固脱贫成效，防止出现返贫现象。",{"$nulls":3},36.51,36.51,null,36.51,{"$nulls":3},"国胜乡"]
[18,"产业发展","产业巩固提升项目","红宝苗族彝族乡","干坪子村、广东湾村、核桃箐村","一是计划实施帮扶蚩文清户产业发展饲养羊10只；二是计划实施帮扶李洪德户产业发展饲养羊10只；三是计划实施帮扶张世祥户产业发展饲养羊10只；四是计划实施帮扶马顺珍户产业发展饲养羊10只；五是计划实施帮扶丰贤德户产业发展饲养羊10只；六是计划实施帮扶丰志全户产业发展饲养鸡60只；七是计划实施帮扶侯正祥户产业发展饲养鸭50只；八是计划实施帮扶侯国全户产业发展饲养猪3头、鸡30只；九是计划实施帮扶侯元明户产业发展饲养猪3头、鸡30只；十是计划实施帮扶侯兴银户产业发展饲养羊10只；十一是计划实施帮扶熊佳梅户（原户主熊才林已死亡）产业发展饲养猪2头、鸡26只、鸭15只；十二是计划实施帮扶陶洪林户产业发展饲养猪2头、鸡25只、鸭15只。","项",1,"按照实际完成工程量进行补助","该项目促进脱贫户、监测户帮扶对象持续稳定增加收入，巩固脱贫成效，防止出现返贫现象。",{"$nulls":3},12.81,12.81,null,12.81,{"$nulls":3},"红宝苗族彝族乡"]
[19,"产业发展","产业巩固提升项目","格萨拉彝族乡","大坪子村、韭菜坪村、大湾村、古德村、支六河村、坪原村。","一是计划实施帮扶李土伙等23户产业发展生猪养殖 53头；二是计划实施帮扶沙尔莫等20户产业发展肉羊养殖 93只；三是计划实施帮扶杨补打等18户产业发展鸡养殖1440只；四是计划实施帮扶沙体古1户产业发展牛养殖1头。","项",1,"按照实际完成工程量进行补助","该项目促进脱贫户、监测户帮扶对象持续稳定增加收入，巩固脱贫成效，防止出现返贫现象。",{"$nulls":3},20.41,20.41,null,20.41,{"$nulls":3},"格萨拉彝族乡"]
[20,"产业发展","产业巩固提升项目","永兴镇","作坊村、复兴村、强胜村、箐河村、永兴村、江西村、岩门村、苍蒲村、新胜村","计划实施帮扶永兴镇监测户、脱贫户养羊15只、养鸡872只、养猪54头、种植桑树5000株。","项",1,"按照实际完成工程量进行补助","该项目促进脱贫户、监测户帮扶对象持续稳定增加收入，巩固脱贫成效，防止出现返贫现象。",{"$nulls":3},{"v":10.366,"d":"10.37"},{"v":10.366,"d":"10.37"},7.096,3.27,{"$nulls":3},"永兴镇"]
[21,"产业发展","产业巩固提升项目","共和乡","共和乡辖区七个村","计划帮扶江应学等26户脱贫户、监测户产业发展羊86头（每头66斤，超过66斤部分由农户自筹），猪28头（每头83斤，超过83斤部分由农户自筹），牛3头（450斤2头，300斤1头，超过斤数部分由农户自筹），肥料175包（200元每包），鸡苗275只（每只1斤，超过1斤部分由农户自筹）。","项",1,"按照实际完成工程量进行补助","该项目促进脱贫户、监测户帮扶对象持续稳定增加收入，巩固脱贫成效，防止出现返贫现象。",{"$nulls":3},{"v":17.7528,"d":"17.75"},{"v":17.7528,"d":"17.75"},17.7528,{"$nulls":4},"共和乡"]
[22,"产业发展","产业巩固提升项目","红格镇","联合村、红格村、鲊石村、新民村","一是计划实施帮扶红格村王元军户、唐应祥户产业发展饲养生猪每户4头；二是计划实施帮扶新民周华清户产业发展饲养生猪4头；三是计划实施帮扶鮓石村张培发户产业发展饲养生猪4头，鲍和华户产业发展饲养生猪每户2头；四是计划实施帮扶联合村卢树兵户、卢华贵产业发展饲养生猪每户4头，帮扶罗起祥户产业发展饲养生猪2头、饲养家禽（鸡）20只。","项",1,"按照实际完成工程量进行补助","该项目促进脱贫户、监测户帮扶对象持续稳定增加收入，巩固脱贫成效，防止出现返贫现象。",{"$nulls":3},{"v":4.2176,"d":"4.22"},{"v":4.2176,"d":"4.22"},4.2176,{"$nulls":4},"红格镇"]
[23,"产业发展","产业巩固提升项目","红果彝族乡","梁子田村、花椒箐村、三滩村","计划实施帮扶候土落户发展养殖猪5头；计划实施帮扶申文安户发展养殖猪5头；计划实施帮扶俄其窝日户发展养殖猪5头；计划实施帮扶候乌各户发展养殖猪5头；计划实施帮扶王光能户发展养殖猪5头；计划实施帮扶李万英户发展养殖猪5头。","项",1,"按照实际完成工程量进行补助","该项目促进脱贫户、监测户帮扶对象持续稳定增加收入，巩固脱贫成效，防止出现返贫现象。",{"$nulls":3},{"v":3,"d":"3.00"},{"v":3,"d":"3.00"},3,{"$nulls":4},"红果彝族乡"]
[24,"产业发展","产业巩固提升项目","惠民镇","建新村、民主村、银河村、和平村、青龙村","扶持惠民镇56户脱贫户、监测户发展小规模养殖羊280只。","项",1,"按照实际完成工程量进行补助","该项目促进脱贫户、监测户帮扶对象持续稳定增加收入，巩固脱贫成效，防止出现返贫现象。",{"$nulls":3},{"v":28,"d":"28.00"},{"v":28,"d":"28.00"},28,{"$nulls":4},"惠民镇"]
[25,"产业发展","产业巩固提升项目","温泉彝族乡","热水塘村、道角村、野麻地村、那片村、四呷左村","一是计划实施帮扶杨阿合等43户产业发展生猪养殖170头；二是计划实施帮扶沙伍呷等30户产业发展肉羊养殖246只。","项",1,"按照实际完成工程量进行补助","该项目促进脱贫户、监测户帮扶对象持续稳定增加收入，巩固脱贫成效，防止出现返贫现象。",{"$nulls":3},{"v":36.5,"d":"36.50"},{"v":36.5,"d":"36.50"},36.5,{"$nulls":4},"温泉彝族乡"]
[26,"产业发展","产业巩固提升项目","渔门镇","龙胜村、高坪村、双龙村、力马村","一是龙胜村计划实施帮扶发展养殖羊20只，猪16只，鸡苗80只。二是高坪村计划实施帮扶发展养殖羊65只。三是双龙村计划实施帮扶发展养殖猪22只，鸡苗440只。四是力马村计划实施帮扶发展养殖猪11只，牛1头，羊16只，鸡苗160只，鹅5只，鸭10只。","项",1,"按照实际完成工程量进行补助","该项目促进脱贫户、监测户帮扶对象持续稳定增加收入，巩固脱贫成效，防止出现返贫现象。",{"$nulls":3},{"v":21.5,"d":"21.50"},{"v":21.5,"d":"21.50"},21.5,{"$nulls":4},"渔门镇"]
[27,"产业发展","产业巩固提升项目","格萨拉彝族乡","大坪子村、韭菜坪村、大湾村、古德村、支六河村、坪原村","一是计划实施帮扶李伍年等10户发展生猪养殖27 头；二是计划实施帮扶杨罗尔等12户产业发展肉羊养殖44只；三是计划实施帮扶沙只只等 14户产业发展鸡养殖820只。","项",1,"按照实际完成工程量进行补助","该项目促进脱贫户、监测户帮扶对象持续稳定增加收入，巩固脱贫成效，防止出现返贫现象。",{"$nulls":3},{"v":8.9336,"d":"8.93"},{"v":8.9336,"d":"8.93"},{"v":8.9336,"d":"8.93"},{"$nulls":4},"县农业农村局、各乡（镇）"]
[28,"产业发展","发展优质特色产业","全县",null,"计划在全县范围内开展特色魔芋示范种植，统筹解决特色魔芋示范点产业配套设施短板。","项",1,"按照实际完成工程量进行补助","开展特色魔芋示范种植，通过引领示范带动农户发展魔芋产业，让农户增收致富。",{"$nulls":3},{"v":100,"d":"100.00"},{"v":100,"d":"100.00"},null,{"v":100,"d":"100.00"},{"$nulls":3},"县农业农村局、各乡（镇）"]
[29,"产业发展","南亚热带特色果树种业创新基地—果树种质资源收集、保存及创新利用项目","桐子林镇","清源社区","1.收集和保存国内外特色果树新品种（新材料）100-200份；2.建立资源保存和育种繁育创新基地60亩；3.筛选适宜当地发展的优良种质资源10种以上，提供对应配套技术规程10份；4.建设特色果树良种良苗繁育供给基地。项目计划总投资180万元，执行期为2024—2026年，其中2024年度计划完成总投资的60%。","项",1,"按照实际完成工程量进行补助","丰富地方南亚热带果树品种资源，筛选适宜当地发展的特色果树品种，研发配套高效栽培技术，储备优良果树品种资源，建设果树良种良苗繁育供给基地，为培育新兴特色果树产业提供良种良苗及技术支撑。",{"$nulls":3},{"v":108,"d":"108.00"},{"v":108,"d":"108.00"},null,{"v":108,"d":"108.00"},{"$nulls":3},"桐子林镇"]
[30,"产业发展","南亚热带特色果树种业创新基地—配套基础设施建设项目","桐子林镇","清源社区","1.60亩山地改天改土（开挖环山行（机耕道）、行面土地平整、建水肥池（100立方米）等）；2.连接基地道路（3.5米宽）水泥硬化500米；3.基地简易管理房、库房50平方米；4.60亩基地配套建设蓄水池（300立方米）、水肥灌溉系统、监控系统；5.繁育种苗大棚1000平方米。项目计划总投资120万元，执行期为2024—2025年，其中2024年度计划完成总投资的50%。","项",1,"按照实际完成工程量进行补助","配套“南亚热带果树种质资源收集、保存及创新利用”项目实施，丰富和储备地方南亚热带果树品种资源，建设果树良种良苗繁育供给基地，为地方新兴特色果树产业发展提供条件保障。",{"$nulls":3},{"v":60,"d":"60.00"},{"v":60,"d":"60.00"},null,{"v":60,"d":"60.00"},{"$nulls":3},"桐子林镇"]
[31,"产业发展","南亚热带特色果树种业创新基地—特色果树培育项目（2022年递进项目）","桐子林镇","清源社区","计划引进南亚热带特色果树20余类50余个品种（系）试验种植，开展品种适应性观测与筛选以及配套高效栽培技术研发，组织技术培训，为地方筛选特色果树品种和配套高效栽培技术，储备优势果树品种资源，培育新兴果树产业。项目计划总投资133.2万元，工期为2022年—2024年，2024年度计划完成总投资的10%。","项",1,"按照实际完成工程量进行补助","为地方筛选特色果树品种和配套高效栽培技术，储备优势果树品种资源，培育新兴果树产业。",{"$nulls":3},13.32,13.32,null,13.32,{"$nulls":3},"县农业农村局"]
[32,"产业发展","标准化羊圈建设项目","红果彝族乡","梁子田村","计划实施梁子田村脱贫户、监测户新建标准化羊圈25座，每座补助2万元。","户",25,"2万元/户","该项目实施可有效解决25户脱贫户、监测户羊圈修建问题，促进地方经济发展，巩固脱贫成效，衔接推进乡村振兴。",{"$nulls":3},{"v":50,"d":"50.00"},{"v":50,"d":"50.00"},null,{"v":50,"d":"50.00"},{"$nulls":3},"红果彝族乡"]
[33,"乡村建设行动","生产用水项目","红果彝族乡","梁子田村","计划实施梁子田村锅底荡组新建20立方米水池13口、5立方米水池23口，安装PEφ32管长15公里等工程。具体工程量以施工图设计及财评工程量清单为准。","项",1,"按照实际完成工程量进行补助","该项目实施可有效解决农户47户236人，其中脱贫户34户176人、监测户4户26人、一般户9户34人的人畜饮水问题。促进地方经济发展，巩固脱贫成效，衔接推进乡村振兴。",{"$nulls":3},{"v":55,"d":"55.00"},{"v":55,"d":"55.00"},null,{"v":55,"d":"55.00"},{"$nulls":3},"红果彝族乡"]
[34,"产业发展","产业道路硬化项目","渔门镇","鳡鱼村","计划实施渔门镇鳡鱼村岔河组马家梁岗芒果产业道路硬化2.5公里，规格：C30砼路面宽3m，厚18cm，边沟C20砼，弯道处按规范要求加宽；每公里不少于3个错车道。具体工程量以施工图设计及财评工程量清单为准。","公里",2.5,"按照实际完成工程量进行补助","该项目实施可有效解决农户8户41人，其中脱贫户2户8人及芒果400余亩的农产品运输问题，促进地方经济发展，巩固脱贫成效，衔接推进乡村振兴。",{"$nulls":3},{"v":100,"d":"100.00"},{"v":100,"d":"100.00"},null,{"v":100,"d":"100.00"},{"$nulls":3},"渔门镇"]
[35,"产业发展","产业道路硬化项目","格萨拉彝族乡","韭菜坪村","计划实施韭菜坪村茅坪子大槽组产业道路硬化6.4公里，规格：C30砼路面宽3m，厚18cm，边沟C20砼，弯道处按规范要求加宽；每公里不少于3个错车道。","公里",6.4,"按照实际完成工程量进行补助","该项目实施可有效解决农户31户127人，其中脱贫户12户57人、监测户3户14人的出行问题及农产品运输问题，促进地方经济发展，巩固脱贫成效，衔接推进乡村振兴。",{"$nulls":3},{"v":256,"d":"256.00"},{"v":256,"d":"256.00"},null,{"v":100,"d":"100.00"},{"v":100,"d":"100.00"},{"v":56,"d":"56.00"},null,"格萨拉彝族乡"]
[36,"产业发展","“共富笮坊”建设项目","共和乡","纳底河村","新建青花椒色选项目车间；青花椒专业市场服务能力提升，提升青花椒色选分级能力；建设和推广青花椒线上交易平台；青花椒品牌商标及包装设计等工程。","项",1,"按照实际完成工程量进行补助","该项目实施可有效解决农户434户，受益人数1640人，其中脱贫户78户280人、监测户6户23人的青花椒销售问题，促进地方经济发展，巩固脱贫成效，衔接推进乡村振兴。",{"$nulls":3},{"v":180,"d":"180.00"},{"v":180,"d":"180.00"},null,{"v":100,"d":"100.00"},{"v":80,"d":"80.00"},null,null,"共和乡"]
[37,"乡村建设行动","道路改扩建项目","共和乡","太田村","太田彭定军户至山王庙垭口道路改扩建7.52公里，利用原有道路加宽至路面宽度4.5米，具体工程量详见施工图设计及财评工程量清单。","公里",7.52,"按照实际完成工程量进行补助","该项目实施可有效解决农户90户450人，其中脱贫户20户112人、核桃1500亩、花椒1700亩、玉米1200亩的农产品运输问题，促进地方经济发展，巩固脱贫成效，衔接推进乡村振兴。",{"$nulls":3},{"v":300,"d":"300.00"},{"v":100,"d":"100.00"},null,{"v":100,"d":"100.00"},null,null,{"v":200,"d":"200.00"},"共和乡"]
[38,"产业发展","茶厂改造提升项目","国胜乡","大毕村","计划实施国胜乡大毕村笮山若水国胜茶厂改造提升项目1个，包含加工厂房面积1500平米，购置机器设备等，计划投资230万元，本次补助财政衔接资金60万元。","项",1,"按照实际完成工程量进行补助","以宣传推广国胜茶为目的，以茶园观光、采茶体验、手工制茶体验、亲子农场、工艺参观、文化交流等为内容，建设集文化传播、观光旅游、产品销售、沉浸式体验为一体的综合性茶文化基地。以该项目为核心点，并以该点带动其他点位的发展，从而在国胜乡形成以“茶”为基础的农文旅融合发展的新局面，拓宽乡村振兴之路，全面带动村民增收致富。",{"$nulls":3},{"v":230,"d":"230.00"},{"v":60,"d":"60.00"},null,{"v":60,"d":"60.00"},null,null,{"v":170,"d":"170.00"},"国胜乡"]
[39,"产业发展","产业道路硬化项目","国胜乡","大毕村","计划新建国胜乡大毕村产业道路1公里（国胜茶庄房屋到茶园山顶），规格：C30砼路面宽3米，厚0.18米，每公里不少于三个错车道。具体工程量以施工图设计及财评工程量清单为准。","项",1,"按照实际完成工程量进行补助","以宣传推广国胜茶为目的，以茶园观光、采茶体验、手工制茶体验、亲子农场、工艺参观、文化交流等为内容，建设集文化传播、观光旅游、产品销售、沉浸式体验为一体的综合性茶文化基地。以该项目为核心点，并以该点带动其他点位的发展，从而在国胜乡形成以“茶”为基础的农文旅融合发展的新局面，拓宽乡村振兴之路，全面带动村民增收致富。",{"$nulls":3},{"v":40,"d":"40.00"},{"v":40,"d":"40.00"},null,{"v":40,"d":"40.00"},{"$nulls":3},"国胜乡"]
[40,"产业发展","产业道路硬化项目","国胜乡","大毕村","计划实施大毕村家鸡沟组青杠坪产业道路硬化3公里，规格：C30砼路面宽3米，厚0.18米，新建便民桥1座；具体工程量以施工图设计及财评工程量清单为准。","公里",3,"按照实际完成工程量进行补助","该项目实施可有效解决农户12户35人产业发展及出行问题，其中边缘户1户3人，涉及核桃800亩、花椒500亩，促进地方经济发展，巩固脱贫成效，衔接推进乡村振兴。",{"$nulls":3},{"v":128,"d":"128.00"},{"v":128,"d":"128.00"},null,{"v":128,"d":"128.00"},{"$nulls":3},"国胜乡"]
[41,"产业发展","产业道路硬化项目","永兴镇","箐河村","计划实施永兴镇箐河村产业道路硬化4.5公里，一是箐河水厂到曾家湾子李天发家3.7公里，二是阎汪桥组产业道路0.8公里，规格：C30砼路面宽3m，厚18cm，边沟C20砼，弯道处按规范要求加宽；每公里不少于3个错车道。具体工程量以施工图设计及财评工程量清单为准。项目财评价格为157.78万元，已安排资金108万元，此次安排资金49.78万元。","公里",4.5,"按照实际完成工程量进行补助","该项目实施可有效解决农户96户325人，其中脱贫户9户36人、低保户5户22人的出行问题及果桑615亩、核桃20亩、花椒200亩、魔芋500余亩、玉米57亩的农产品运输问题，促进地方经济发展，巩固脱贫成效，衔接推进乡村振兴。",{"$nulls":3},157.78,157.78,null,{"$f":"108+49.78","v":157.78},{"$nulls":3},"永兴镇"]
[42,"产业发展","产业道路硬化项目","格萨拉彝族乡","大坪子村","计划实施大坪子村产业道路硬化1.7公里（三家村组至沙正伟家炮点处道路硬化），规格：C30砼路面宽3m，厚18cm，边沟C20砼，弯道处按规范要求加宽；每公里不少于3个错车道。","公里",1.7,"按照实际完成工程量进行补助","该项目实施可有效解决农户12户62人，其中脱贫户3户15人、监测户1户6人、一般户8户41人的出行问题及农产品运输问题，促进地方经济发展，巩固脱贫成效，衔接推进乡村振兴。",{"$nulls":3},{"v":68,"d":"68.00"},{"v":68,"d":"68.00"},null,{"v":68,"d":"68.00"},{"$nulls":3},"格萨拉彝族乡"]
[43,"产业发展","中草药种植基地项目","温泉彝族乡","野麻地村","野麻地村白堡坪海拔较高、气温偏低、土地资源丰富，水源能满足种植需求，适合种植白芨、黄精等中草药，项目拟在野麻地白堡坪新建100亩的中草药种植基地，配套建设踏石路机耕道，围栏，土地整治等。","亩",100,"按照实际完成工程量进行补助","该项目实施可有效壮大村集体经济，吸引当地群众就地就近就业，提高农户收入，促进地方经济发展巩固脱贫成效，衔接推进乡村振兴。",{"$nulls":3},{"v":35,"d":"35.00"},{"v":35,"d":"35.00"},null,{"v":35,"d":"35.00"},{"$nulls":3},"温泉彝族乡"]
[44,"产业发展","村集体经济发展—农产品集散场地建设项目","温泉彝族乡","热水塘村","村集体经济发展项目，借助温泉格萨拉高海拔地区，主盛产圆根萝卜等蔬菜优势，建设彝族圆根萝卜酸菜加工生产基地，新建150平方米生产房，晾晒板房，购买制作木桶，包装机器等。","平方米",150,"按照实际完成工程量进行补助","该项目实施可有效壮大村集体经济，吸引当地群众就地就近就业，提高农户收入，促进地方经济发展巩固脱贫成效，衔接推进乡村振兴。",{"$nulls":3},{"v":40,"d":"40.00"},{"v":40,"d":"40.00"},null,{"v":40,"d":"40.00"},{"$nulls":3},"温泉彝族乡"]
[45,"产业发展","魔芋产业园区配套基础设施建设项目","红格镇","新民村","计划实施红格镇新民村魔芋产业园区配套基础设施建设项目，道路硬化全长1.232公里，其中：扩建道路432米，从原有道路3.5米宽扩建至8米宽；硬化道路800米，路面宽4.5米；新建挡墙1200立方米；标准化魔芋种植示范基地建设。具体工程量以施工图设计及财评工程量清单为准。","公里",1.2,"按照实际完成工程量进行补助","该项目实施可有效解决农户58户230余人，其中监测户3户10人的出行问题及蔬菜1200亩、芒果3000亩、玉米500亩及魔芋产业园区的农产品运输问题，促进地方经济发展，巩固脱贫成效，衔接推进乡村振兴。",{"$nulls":3},{"v":300,"d":"300.00"},{"v":300,"d":"300.00"},null,{"v":300,"d":"300.00"},{"$nulls":3},"红格镇"]
[46,"产业发展","蓝莓基地配套基础设施建设顶目","红格镇","和爱村","计划实施红格镇和爱村顺山组2000亩果园地蓝莓种植基础设施配套项目，一是购买部分种苗用于发展集体经济；二是完善种植基地水、路配套设施，具体工程量详见施工图设计及财评工程量清单。","项",1,"按照实际完成工程量进行补助","该项目实施可解决110户560人，2000亩蓝莓产业园的生产发展运输问题。",{"$nulls":3},{"v":150,"d":"150.00"},{"v":150,"d":"150.00"},null,{"v":150,"d":"150.00"},{"$nulls":3},"红格镇"]
[47,"产业发展","蝴蝶兰花卉基地大棚建设项目","红格镇","鲊石村","计划实施红格镇鲊石村阿基鲁组蝴蝶兰花卉基地大棚建设项目，新建5000平方米智能化大棚，种植兰花50万余株。项目计划总投资350万元，申请补助35万元，企业自筹资金315万元，资金补助管材、设备、机械、技工等费用。","项",1,"按照实际完成工程量进行补助","该项目实施可有效解决农村剩余劳动力12人的就业，并为村集体创收，为康养民宿人居创造良好的环境。",{"$nulls":3},{"v":40,"d":"40.00"},{"v":40,"d":"40.00"},null,{"v":40,"d":"40.00"},{"$nulls":3},"红格镇"]
[48,"产业发展","\n精品桑椹干加工项目","渔门镇","双龙村","计划实施盐边县誉兴农业科技有限公司精品桑椹干加工项目，建设年产2000吨精品桑椹干生产线，主要包括：清洗、烘干、分选、杀菌、包装等设施设备购置，车间建设等工程。","项",1,"按照实际完成工程量进行补助","该项目实施可有效解决农户600户2400余人，其中脱贫户59户260人、监测户19户40余人的桑果销售问题，促进地方经济发展，巩固脱贫成效，衔接推进乡村振兴。",{"$nulls":3},368.25,{"v":90,"d":"90.00"},null,{"v":90,"d":"90.00"},null,null,278.25,"渔门镇"]
[49,"产业发展","中药材种植项目","渔门镇","东风村","计划实施渔门镇东风村新种植林下中药材天门冬30亩，生长周期为2年，每亩共计补助资金0.47万元，其中：每亩种苗补助1800元（每亩1200株、每株补助1.5元），每亩土地流转费用两年合计1000元，肥料、农膜、农药等补助1900元。","亩",30,"0.47万元/亩","示范种植林下中药材，预计每亩收益8000元左右，发展壮大村集体经济。",{"$nulls":3},{"v":14.1,"d":"14.10"},{"v":14.1,"d":"14.10"},null,{"v":14.1,"d":"14.10"},{"$nulls":3},"渔门镇"]
[50,"产业发展","新建农产品交易中心项目","格萨拉彝族乡","支六河村","计划实施支六河村新建农产品交易中心项目，搭建彩钢棚2256.8m²，改建线路，新建二四墙263.2m²，混凝土堡坎，建筑材料清运。","项",1,"按照实际完成工程量进行补助","该项目实施可有效解决全乡农户农产品交易场地短板问题，促进地方经济发展，巩固脱贫成效，衔接推进乡村振兴。",{"$nulls":3},{"v":79,"d":"79.00"},{"v":79,"d":"79.00"},null,{"$f":"54+25","v":{"v":79,"d":"79.00"}},{"$nulls":3},"格萨拉彝族乡"]
[51,"乡村建设行动","和美乡村建设项目","红宝苗族彝族乡","择木龙村","计划实施择木龙和美乡村农文旅融合发展项目，新建自然石滩挡水墙130m，摸鱼游乐区1400㎡，沙池150㎡，小溪（汀步、引水管、出水管）80m，石槽，石钵15套，标识标牌1套，垃圾桶200个，垃圾收集分类亭21个，观光田园改造1亩。具体工程量以施工图设计及财评工程量清单为准。","项",1,"按照实际完成工程量进行补助","该项目实施可有效改善村容村貌，提质择木龙村旅游，促进群众增收，促进地方经济发展，巩固脱贫成效，衔接推进乡村振兴。",{"$nulls":3},98.43,98.43,null,98.43,{"$nulls":3},"红宝苗族彝族乡"]
[52,"乡村建设行动","和美乡村建设项目","红宝苗族彝族乡","择木龙村","新建藤桥河防洪堤防368.9m，加高已建堤防49.5m（上游31.5m，下游18m）、加高已建挡墙361.8m，新建箱涵1座。项目计划总投资191万元，此次安排衔接资金100万元，待安排资金91万元。","项",1,"按照实际完成工程量进行补助","该项目实施可有效保护沿河居民人身财产安全，同时保障农户37户151人出行问题，及360亩核桃，98亩魔芋等农产品运输问题，促进地方经济发展，巩固脱贫成效，衔接推进乡村振兴。",{"$nulls":3},{"v":191,"d":"191.00"},{"v":191,"d":"191.00"},null,{"v":100,"d":"100.00"},{"v":91,"d":"91.00"},null,null,"红宝苗族彝族乡"]
[53,"乡村建设行动","人饮及生产用水项目","红格镇","联合村","计划实施红格镇联合村人饮及生产用水配套设施项目，修建水池1口200立方米，直径75镀锌上水管500米，直径50镀锌下水管500米，预计费用25万元。       ","项",1,"按照实际完成工程量进行补助","该项目实施可有效解决联合村村部供水问题，促进地方经济发展，巩固脱贫成效，衔接推进乡村振兴。",{"$nulls":3},{"v":25,"d":"25.00"},{"v":25,"d":"25.00"},null,{"v":25,"d":"25.00"},{"$nulls":3},"红格镇"]
[54,"乡村建设行动","取水坝恢复项目","格萨拉彝族乡","支六河村","计划实施格萨拉乡支六河村沙湾沟取水坝恢复项目，恢复水毁取水坝 1座，新建取水坝上下游挡墙5处 630m³，新增φ200镀锌钢管100m，恢复水毁渠道 180m，河道疏浚501m等工程。","项",1,"按照实际完成工程量进行补助","该项目实施可有效解决农户94户450人，其中脱贫户32户161人，监测户5户20人的出行、用水及320亩优质农田灌溉问题，同时带动产业发展，巩固脱贫成效。",{"$nulls":3},68.89,68.89,null,68.89,{"$nulls":3},"格萨拉彝族乡"]
[55,"乡村建设行动","道路改扩建项目","惠民镇","兴隆村","计划实施惠民镇兴隆村联合一组社道改扩建项目，全长1.8公里，目前宽2.8米，现加宽至4.5米，新建小拱桥1座，具体工程量详见施工图设计及财评工程量清单。","项",1,"按照实际完成工程量进行补助","该项目实施可有效解决农户434户，受益人数1640人，其中脱贫户78户280人、监测户6户23人的青花椒种植及品种优化问题，促进地方经济发展，巩固脱贫成效，衔接推进乡村振兴。",{"$nulls":3},{"v":70,"d":"70.00"},{"v":70,"d":"70.00"},null,{"v":70,"d":"70.00"},{"$nulls":3},"惠民镇"]
[56,"乡村建设行动","道路改扩建项目","新九镇","猛粮村","将新坝村至猛粮村3.7公里道路加宽，原有3.5米宽道路加宽硬化至4.5米，对破损边沟进行修复，新建3.5m*4m过河盖板涵一处。具体工程量以施工图设计及财评工程量清单为准。","项",1,"按照实际完成工程量进行补助","解决400户农户1700余人的出行难问题，同时，有效改善400亩芒果、5000亩玉米、200亩其他果树的耕种和运输条件，增加农户收入。",{"$nulls":3},{"v":372.1772,"d":"372.18"},{"v":94.1772,"d":"94.18"},null,{"$f":"372.1772-278","v":{"v":94.1772,"d":"94.18"}},null,null,{"$f":"158+120","v":{"v":278,"d":"278.00"}},"新九镇"]
[57,"乡村建设行动","古村落改造工程","新九镇","猛粮村","拟对猛粮村粮合组古村落中约800米古街道，拆除原有破损水泥路面进行升级改造，铺设青石板路面，对街道两边进行美化等。具体工程量详见施工图设计及财评工程量清单。","项",1,"按照实际完成工程量进行补助","该项目实施后，可有效解决了粮合组集中居住点30户100余人的生产生活出行难问题，同时有效提升猛粮村古村落的整体形象，为后期建成和美乡村奠定基础。",{"$nulls":3},{"v":50,"d":"50.00"},{"v":50,"d":"50.00"},null,50,{"$nulls":3},"新九镇"]
[58,"巩固三保障成果","医疗救助项目","全县",null,"计划实施补充注入县卫生扶贫救助基金196万元。","项",1,"按照实际完成工程量进行补助","防止因病返贫，持续巩固脱贫攻坚成果。",{"$nulls":3},{"v":196,"d":"196.00"},{"v":196,"d":"196.00"},{"$nulls":3},{"$f":"196","v":{"v":196,"d":"196.00"}},null,"县卫生健康局"]
[59,"巩固三保障成果","住房建设贷款贴息项目","全县",null,"计划实施2024年全县脱贫户住房建设贷款贴息资金项目1个，对全县脱贫户住房建设贷款予以贴息。","项",1,"按照实际完成工程量进行补助","解决脱贫户904户住房建设贷款贴息资金，巩固脱贫成效。",{"$nulls":3},{"v":187.0507,"d":"187.05"},{"v":187.0507,"d":"187.05"},null,12.22,null,{"$f":"160+15.6307-13-0.8+13","v":{"v":174.8307,"d":"174.83"}},null,"县农业农村局"]
[60,"巩固三保障成果","扶贫保项目","全县",null,"计划实施全县脱贫户、监测户购买“扶贫保”，计划投保4508户。每户投保费用为42元，其中：财政补贴80%、农户自缴20%。","项",1,"按照实际完成工程量进行补助","提高抵御风险能力，防止因病、因灾、重大事故而意外返贫，持续巩固脱贫攻坚成果。",{"$nulls":3},{"v":18.93352,"d":"18.93"},{"v":15.1468,"d":"15.15"},{"$nulls":3},{"v":15.1468,"d":"15.15"},{"$f":"4508*42*0.2/10000","v":{"v":3.78672,"d":"3.79"}},"县农业农村局"]
[61,"就业项目","外出务工交通补助","全县",null,"计划对1806名脱贫户、监测户发放县外省内就业一次性铁路、公路和水运（路）交通补助，3个月以上6个月以内每人补助200元，6个月以上每人补助400元。对1840名脱贫户、监测户发放省外就业一次性铁路、公路和水运（路）交通补助，3个月以上6个月以内每人补助800元，6个月以上每人补助1200元。","项",1,"按照实际完成工程量进行补助","有效提高脱贫户、监测户外出务工交通保障，增加工资性收入，巩固脱贫成果。",{"$nulls":3},{"v":253.8,"d":"253.80"},{"v":155.5,"d":"155.50"},null,{"$f":"102-0.5","v":{"v":101.5,"d":"101.50"}},null,{"$f":"54","v":{"v":54,"d":"54.00"}},{"v":98.3,"d":"98.30"},"县人力资源和社会保障局"]
[62,"就业项目","农村实用技术培训项目","全县",null,"计划结合“名厨出港”行动对全县监测帮扶对象、脱贫人口开展生产经营和劳动技能培训。","项",1,"按照实际完成工程量进行补助","有效提升监测帮扶对象、脱贫人口生产技能水平，增加脱贫户、监测户生产经营性及务工收入，巩固脱贫成果，有效衔接推进乡村振兴。",{"$nulls":3},{"v":10,"d":"10.00"},{"v":10,"d":"10.00"},{"$nulls":3},{"v":10,"d":"10.00"},null,"县人力资源和社会保障局"]
[63,"产业发展","灾后恢复产业扶持项目","全县",null,"计划对全县汛期受灾脱贫户和监测户进行灾后产业扶持，具体工程量和补助标准以各乡镇上报的实施方案为准。","项",1,"按照实际完成工程量进行补助","有效防止脱贫户和监测户因灾返贫，切实巩固脱贫成效，衔接推进乡村振兴。",{"$nulls":3},{"v":70,"d":"70.00"},{"v":70,"d":"70.00"},null,{"$f":"30+12.4+0.5","v":{"v":42.9,"d":"42.90"}},{"v":27.1,"d":"27.10"},null,null,"各乡（镇）"]
[64,"乡村建设行动","和美乡村建设1580行动","全县",null,"一是计划投入160万元在全县16个和美乡村示范村（2024年省级达标村、市级示范村）开展农村人居环境整治、村庄绿化、村庄亮化、垃圾治理、美丽庭院、违乱残断等方面整治工作；二是计划投入40万元在全县12个乡镇村庄清洁行动，具体建设内容以乡镇上报实施方案及批复为准。","项",1,"按照实际完成工程量进行补助","进一步改善农村人居环境条件，提升村容村貌，助力和美乡村建设。",{"$nulls":3},{"$f":"O70+T70","v":{"v":200,"d":"200.00"}},{"$f":"P70+Q70+R70+S70","v":{"v":200,"d":"200.00"}},{"$nulls":3},{"v":200,"d":"200.00"},null,"县农业农村局、各乡（镇）"]
[65,"产业发展","鹌鹑产业发展综合服务中心建设项目","红格镇","红格村","计划实施鹌鹑产业发展综合服务中心建设项目，主要建设鹌鹑孵化场、种鹌鹑养殖场、鹌鹑蛋加工车间、屠宰区、冻库、饲料、蛋品储存中转中心、养殖技术服务中心、鹌鹑养殖户培训中心以及办公区域等。","项",1,"按照实际完成工程量进行补助","建设鹌鹑全产业链发展示范基地，通过探索鹌鹑养殖“共富笮坊”模式推广农户养殖200万羽。",{"$nulls":3},{"v":150,"d":"150.00"},{"v":150,"d":"150.00"},{"$nulls":3},{"v":150,"d":"150.00"},null,"县农业农村局、红格镇"]
[66,"产业发展","产业道路硬化项目","共和乡","纳底河村","计划实施纳底河村烂柴湾组四段产业道路硬化共计2公里，利用原有土路加宽至路面宽度3米并硬化（不要背沟），具体工程量以施工图设计及财评工程量清单为准，项目计划投资70万元。","公里",2,"按照实际完成工程量进行补助","项目实施可有效解决农户60户，受益人数204人，其中脱贫户15户40人的产业运输及发展问题，促进地方经济发展，巩固脱贫成效，衔接推进乡村振兴。",{"$nulls":3},{"v":70,"d":"70.00"},{"v":70,"d":"70.00"},null,null,{"v":20,"d":"20.00"},{"v":50,"d":"50.00"},null,"共和乡"]
[67,"产业发展","林下中药材种植示范基地建设项目","共和乡","太田村","计划在太田村建设林下中药材种植示范基地500亩（种植续断、金银花、板蓝根），配套水系、道路等基础设施。具体工程量以施工图设计及财评工程量清单为准","项",1,"按照实际完成工程量进行补助","该项目实施可有效提高村集体经济收益，全村受益516户，受益人数1755人，其中脱贫户59户243人、监测户12户33人，促进地方经济发展，巩固脱贫成效，衔接推进乡村振兴。",{"$nulls":3},{"v":150,"d":"150.00"},{"v":150,"d":"150.00"},null,null,{"v":100,"d":"100.00"},{"v":50,"d":"50.00"},null,"共和乡"]
[68,"产业发展","产业道路硬化项目","红果彝族乡","梁子田村","计划实施梁子田村产业道路硬化3.8公里，砼路面宽3米，其中：核桃树湾水泥路断头至仲家田1.2公里，核桃树湾水泥路断头至陆家梁子1.1公里，水泥路至转山田1公里，大田坝组付家湾水泥路断头至上荒坪子社道0.1公里，仲家田至保管室0.4公里。具体工程量以施工图设计及财评工程量清单为准。","公里",3.8,"按照实际完成工程量进行补助","该项目实施可有效解决24户81人（其中脱贫户5户23人，监测户1户4人）群众出行及130余亩晚熟芒果等农业生产及农产品运输问题，促进地方经济发展，巩固脱贫成效，衔接推进乡村振兴。",{"$nulls":3},{"v":150,"d":"150.00"},{"v":150,"d":"150.00"},null,null,{"v":100,"d":"100.00"},{"v":50,"d":"50.00"},null,"红果彝族乡"]
[69,"乡村建设行动","生产用水配套项目","渔门镇","鳡鱼村","计划实施渔门镇鳡鱼村岔河到杨柳湾提灌站安装6公里80镀锌管及变压器1台，具体工程量以施工图设计及财评工程量清单为准。","项",1,"按照实际完成工程量进行补助","项目实施可有效解决农户26户124人，芒果400亩灌溉及人饮问题，促进地方经济发展，巩固脱贫成效，衔接推进乡村振兴。",{"$nulls":3},{"v":47,"d":"47.00"},{"v":47,"d":"47.00"},null,null,{"v":47,"d":"47.00"},null,null,"渔门镇"]
[70,"乡村建设行动","生产用水配套项目","渔门镇","鳡鱼村","计划实施渔门镇鳡鱼村大伙房组云盘堰修建3.5公里，具体工程量以施工图设计及财评工程量清单为准。","项",1,"按照实际完成工程量进行补助","项目实施可有效解决农户79户203人，芒果3500余亩灌溉问题。",{"$nulls":3},{"v":54.4,"d":"54.40"},{"v":54.4,"d":"54.40"},null,null,{"v":4.4,"d":"4.40"},{"v":50,"d":"50.00"},null,"渔门镇"]
[71,"乡村建设行动","产业道路硬化项目","渔门镇","鳡鱼村","计划实施渔门镇鳡鱼村岔河组产业道路硬化1.5公里，砼路面宽3米、厚18cm，具体工程量以施工图设计及财评工程量清单为准。","项",1,"按照实际完成工程量进行补助","项目实施可有效解决群众出行难及500余亩产业运输难问题，促进地方经济发展，巩固脱贫成效，衔接推进乡村振兴。",{"$nulls":3},{"v":48.6,"d":"48.60"},{"v":48.6,"d":"48.60"},null,null,{"v":48.6,"d":"48.60"},null,null,"渔门镇"]
[72,"产业发展","产业道路硬化项目","桐子林镇","金河村","计划实施桐子林镇芒果产业园区金河村纳尔河组桃子坪产业道路5公里，规格：C30砼路面宽3m，厚18cm，边沟C20砼，弯道处按要求加宽，每公里不少于3个错车道。具体工程量以施工图设计及财评工程量清单为准。","公里",{"v":5,"d":"5.0"},"按照实际完成工程量进行补助","该项目实施可有效解决26户117人（其中监测户2户11人）出行安全问题，及2000余亩芒果等农副产品运输，促进地方经济发展，巩固脱贫成效，衔接推进乡村振兴。",{"$nulls":3},{"v":200,"d":"200.00"},{"v":200,"d":"200.00"},null,{"v":200,"d":"200.00"},{"$nulls":3},"桐子林镇"]
[73,"产业发展","产业道路硬化项目","红宝苗族彝族乡","谜塘村","计划实施谜塘村龙头组麦子沟产业道路硬化 0.335公里，砼路面宽3m，厚18cm。","公里",0.335,"按照实际完成工程量进行补助","该项目实施可有效解决3户农户的出行、27 户 78 人（核桃 430 亩、花椒 185 亩、玉米 70 亩）农产品运输问题。",{"$nulls":3},{"v":9.3,"d":"9.30"},{"v":9.3,"d":"9.30"},null,null,{"$f":"9.3-0.52-0.8","v":7.98},{"$f":"0.52+0.8","v":1.32},null,"红宝苗族彝族乡"]
[74,"产业发展","农产品分拣中心建设项目","红格镇","昔格达村","计划实施昔格达村岔河组万鸿家庭农场农产品分拣中心建设项目，场地硬化2500平方，新建彩钢棚2500平。具体工程量以乡镇上报实施方案及批复为准。","项",1,"按照实际完成工程量进行补助","该项目实施可解决辐射周边红格镇昔格达村组24户芒果及荔枝分拣问题，实现集中高效分拣，促进群众增收致富。",{"$nulls":3},{"v":70,"d":"70.00"},{"v":20,"d":"20.00"},{"$nulls":3},20,50,"红格镇"]
[75,"产业发展","“三无一全”标准化桑椹种植示范基地建设项目","渔门镇","荒田村","计划在渔门镇荒田村阴山组建设500亩桑椹“三无一全”标准化种植示范基地，配套灌溉及基础设施。","项",1,"按照实际完成工程量进行补助","打造桑椹”三无一全“标准化种植示范基地，提升蚕桑品质，促进蚕桑产业高质量发展，促进地方经济发展，巩固脱贫成效，衔接推进乡村振兴。",{"$nulls":3},{"v":50,"d":"50.00"},{"v":50,"d":"50.00"},null,6,null,{"v":44,"d":"44.00"},null,"渔门镇"]
[76,"产业发展","产业道路硬化项目","渔门镇","高坪村","计划实施高坪村护林组产业道路硬化1公里，规格：C30砼路面宽3.5m，厚18cm，弯道处按规范要求加宽；每公里不少于3个错车道。具体工程量以施工图设计及财评工程量清单为准。","公里",1,"按照实际完成工程量进行补助","该项目实施可有效解决农户19户82人出行及300余亩核桃、300余亩青椒、1000余亩蚕桑运输问题，促进地方经济发展，巩固脱贫成效，衔接推进乡村振兴。",{"$nulls":3},{"v":35,"d":"35.00"},{"v":35,"d":"35.00"},null,35,{"$nulls":3},"渔门镇"]
[77,"乡村建设行动","生产用水配套设施项目","渔门镇","犀牛村","计划实施犀牛村犀牛组新建300立方水池一口，安装主水管50管长5800米，支水管32管长7500米等工程。具体工程量以施工图设计及财评工程量清单为准。","项",1,"按照实际完成工程量进行补助","该项目实施可解决犀牛村犀牛组89户，其中监测户2户，脱贫户1户，480亩晚熟芒果产业灌溉问题，每年每户可增收1500元，人均增收300元。",{"$nulls":3},{"v":45,"d":"45.00"},{"v":45,"d":"45.00"},null,45,{"$nulls":3},"渔门镇"]
[78,"乡村建设行动","道路维修项目","国胜乡","大石房村","计划实施国胜乡大石房村白石岩组至红宝乡上白石岩组道路维修项目1.8公里，其中新建挡土墙661.7m3、排水沟1800m、2.5*2.5*4涵洞两座、D600管涵40米等工程。具体工程量以施工图设计及财评工程量清单为准。","项",1,"按照实际完成工程量进行补助","该项目实施可有效解决沿线农户59户236人出行及农产品运输难题，促进地方经济发展，巩固脱贫成效，",{"$nulls":3},{"v":58,"d":"58.00"},{"v":58,"d":"58.00"},null,{"v":58,"d":"58.00"},{"$nulls":3},"国胜乡"]
[79,"乡村建设行动","新建便民桥项目","国胜乡","大毕村","计划实施大毕村家鸡沟组易地扶贫搬迁聚居点新建便民桥1座，长8米、宽3.5米。具体工程量以施工图设计及财评工程量清单为准。","项",1,"按照实际完成工程量进行补助","该项目实施可有效解决农户12户62人产业发展及出行问题，其中脱贫户2户9人，促进地方经济发展，巩固脱贫成效，衔接推进乡村振兴。",{"$nulls":3},{"v":20,"d":"20.00"},{"v":20,"d":"20.00"},null,{"v":20,"d":"20.00"},{"$nulls":3},"国胜乡"]
[80,"乡村建设行动","烤烟房配电工程项目","格萨拉彝族乡","坪原村","计划实施坪原村高家火山组烟点烤房用电新增1×400kVA配电工程项目。包含新建10kV线路1km，安装变压器1台、JP柜1台、10kV避雷器1组、10kV跌落开关1组；敷设电缆40米，电缆头制作安装8套；安装用户总配电箱1面等工程。","项",1,"按照实际完成工程量进行补助","该项目实施有力推动格萨拉乡烤烟产业高质量发展，助推共同富裕试验区建设。",{"$nulls":3},24.55,24.55,{"$nulls":3},24.55,null,"格萨拉彝族乡"]
[81,"金融扶持项目","政策性农业保险","全县",null,"在全县12个乡镇继续推进肉羊养殖保险，减少疾病等原因造成农户大额财产损失，支持发展肉羊产业发展。","项",1,"按照实际完成工程量进行补助","继续推进肉羊保险，为12个乡镇肉羊养殖户的2万6千余头肉羊提供保险，减少疾病等原因造成农户大额财产损失，可以为促进地方经济发展，巩固脱贫成效，衔接推进乡村振兴。",{"$nulls":3},132.37,{"v":109.1525,"d":"109.15"},{"$nulls":3},{"v":109.1525,"d":"109.15"},{"v":23.2175,"d":"23.22"},"县财政局"]
[82,"产业发展","以工代赈项目","红宝苗族彝族乡","择木龙村","计划硬化择木龙村小干河至热水坪子产业道路1.692公里，修建挡土墙507m3，具体工程量以施工图设计及财评工程量清单为准。","公里",1,"按照实际完成工程量进行补助","该项目实施可有效解决18户63人（其中脱贫户6户21人）出行安全问题，及核桃160亩，青花椒50亩，魔芋30亩，玉米羊肚菌6亩等农副产品运输，促进地方经济发展，巩固脱贫成效，衔接推进乡村振兴。",{"$nulls":3},{"v":70,"d":"70.00"},{"v":70,"d":"70.00"},null,null,70,null,null,"县发改局、红宝苗族彝族乡"]
[83,"产业发展","产业道路硬化项目","永兴镇","复兴村","硬化回龙坝组产业运输道路1.2公里，宽3.5米，厚0.18米，设置边沟，涵管1处，每公里3处错车道。","公里",1.2,"38万/公里","解决少数民族26户120人的出行及120亩烤烟、200亩桑葚、80亩花椒，150亩核桃管理、运输等。",{"$nulls":3},{"v":44,"d":"44.00"},{"v":44,"d":"44.00"},{"v":44,"d":"44.00"},{"$nulls":4},"县民宗局、永兴镇"]
[84,"产业发展","产业道路硬化项目","渔门镇","狮子堡村","硬化核桃、青椒、产业基地内道路1.25公里：砼路面3.5m宽，18cm厚，每公里设置错车道3处，不设置背沟。","公里",1.25,"32万元/公里","解决45户191人的300亩核桃、180亩青椒、180亩蚕桑的发展、管理、运输。",{"$nulls":3},{"v":40,"d":"40.00"},{"v":40,"d":"40.00"},{"v":40,"d":"40.00"},{"$nulls":4},"县民宗局、渔门镇"]
[85,"乡村建设行动","路面改造工程","新九镇","新坝村","改造新坝村村委会至龙塘段产业运输道路174米、道路均宽6.5米，混凝土厚度20厘米，其中118米垫层16厘米、56米路面垫层10厘米，在原12米长便桥上游方向新拓宽3米。","项",1,"按照实际完成工程量进行补助","该项目实施可有效解决农户50户205人（监测户1户2人）的出行及芒果65亩、核桃6亩、花椒3亩、玉米60亩的农产品运输问题，促进地方经济发展，衔接推进乡村振兴。",{"$nulls":3},{"v":40,"d":"40.00"},{"v":40,"d":"40.00"},{"v":40,"d":"40.00"},{"$nulls":4},"县民宗局、新九镇"]
[86,"产业发展","产业道路硬化项目","共和乡","共和乡雅砻江村","硬化麦皮地组核桃、青椒、产业基地内道路1公里；砼路面3.5m宽，18cm厚，每公里设置错车道3处，不设置背沟。","公里",1,"32万元/公里","解决农户50户234人（脱贫户12户52人）的500亩核桃、300亩青花椒的运输、管理问题，促进地方经济发展，巩固脱贫成效，衔接推进乡村振兴。",{"$nulls":3},{"v":32,"d":"32.00"},{"v":32,"d":"32.00"},{"v":32,"d":"32.00"},{"$nulls":4},"县民宗局、共和乡"]
[87,"乡村建设行动","安全饮水项目","渔门镇","龙胜村","新建水池7口97m³，其中：20m³蓄水池4口，10m³蓄水池1口，5m³蓄水池1口，2m³蓄水池1口。新架设管道20.5km，其中PEφ32管13km,PE25管7.5km，水质检测一项。","项",1,"按照实际完成工程量进行补助","项目建成后可解决36户140人安全饮水问题。",{"$nulls":3},{"v":41,"d":"41.00"},{"v":41,"d":"41.00"},{"v":41,"d":"41.00"},{"$nulls":4},"县民宗局、渔门镇"]
[88,"产业发展","三滩村山羊养殖示范基地项目","红果彝族乡","三滩村","实施三滩村山羊养殖示范基地给排水工程（其中包含化粪池、污水井、污水管网、给水管网建设）；新建凉晒场；自吸式饲料粉碎搅拌一体机 1 套；硬化4m宽、18cm厚路面33米；新建挡墙65立方米；种植黄竹草地50余亩；引进优质波尔黄金种羊12只。","项",1,"按照实际完成工程量进行补助","将带动该辖区域内山羊品种改良及产业示范引领，提升区域经济和壮大集体经济。",{"$nulls":3},{"v":30,"d":"30.00"},{"v":30,"d":"30.00"},{"v":30,"d":"30.00"},{"$nulls":4},"县民宗局、红果彝族乡"]
[89,"产业发展","产业道路硬化项目","红宝苗族彝族乡","干坪子村","硬化白石岩组产业运输道路1.40公里，厚0.18米，其中宽3.5米600米、3米宽800米，不设置边沟，每公里3处错车道、C20混凝土片石安防设施石墩70个（每个长2米、高60厘米、宽40厘米）；","公里",1.4,"按照实际完成工程量进行补助","有效解决农户51户168人（脱贫户7户29人）的出行问题及桑树110亩、核桃130亩、花椒115亩、玉米40亩的运输、管理问题，促进地方经济发展，巩固脱贫成效，衔接推进乡村振兴。",{"$nulls":3},{"v":43,"d":"43.00"},{"v":43,"d":"43.00"},{"v":43,"d":"43.00"},{"$nulls":4},"县民宗局、红宝苗族彝族乡"]
[90,"产业发展","生产用水灌溉项目","红果彝族乡","花地村","在花地村马草湾新建蓄水池2口301立方米，其中取水池1立方米、生产用水300立方米蓄水池1口，新架设直径32PEC管道2000米","项",1,"按照实际完成工程量进行补助","有效解决17户当地村民及2户凉山自迁户共76人的生产用水问题，可有效灌溉芒果430亩、玉米80亩、魔芋15亩农业生产灌溉用水，促进地方经济发展，巩固脱贫成效，衔接推进乡村振兴。",{"$nulls":3},{"v":10,"d":"10.00"},{"v":10,"d":"10.00"},{"v":10,"d":"10.00"},{"$nulls":4},"县民宗局、红果彝族乡"]
[91,"项目管理费","公共支出项目","全县",null,"资金主要用于项目管理、业务培训和农牧民技能培训。包括项目规划编制、前期调研、评估论证、检查验收、总结宣传、培训学习、后期评估等与项目管理相关的经费支出和农牧民参与项目实施技能培训。","项",1,"按照不超过1%的比例提取","解决盐边县民宗局少数民族发展任务资金项目的管理、培训等工作。",{"$nulls":3},{"v":2,"d":"2.00"},{"v":2,"d":"2.00"},{"v":2,"d":"2.00"},{"$nulls":4},"县民宗局"]
[92,"产业发展","优势特色产业乡镇（省级产业强镇）建设项目","国胜乡",null,"计划实施国胜乡2024年省级优势特色产业乡镇建设，重点围绕茶产业种植、加工、销售等全产业链管理，开展标准化基地示范，改造提升低效茶园，开展分选加工营销、商贸物流、品牌打造、产业融合、主体培育、利益联结机制创新等关键环节、薄弱领域建设，加快推动品种培优、品质提升、品牌培育和标准化生产。","项",1,"按照实际完成工程量进行补助","以建设省级现代农业园区为目标，加强对当地抗逆性强的茶树种质资源的筛选、收集和保存，加大优良茶树品种的引进力度，加快茶叶良种繁育场建设。适度扩大茶叶基地规模，提质升级现有茶园标准化管理水平，推进绿色、有机茶园建设。加快推进茶叶精深加工发展，拓宽产业链条，深入挖掘产业附加值。实施品牌引领战略，提高产品市场竞争力，逐步将国胜茶推向全国市场。",{"$nulls":3},{"v":3682,"d":"3682.00"},{"v":600,"d":"600.00"},null,600,null,null,3082,"国胜乡"]
[93,"产业发展","晚熟芒果产业集群建设项目","全县",null,"计划实施晚熟芒果产业集群建设项目，包括标准化基地提升、推进“攀果”区域公共品牌市场开拓、新型经营主体培育、芒果品比园建设、芒果专家团队建设、芒果科普展示馆提档升级等内容。","项",1,"按照实际完成工程量进行补助","推动区域内芒果产业发展资源、要素高度聚集，建设全产业链开发、全价值链提升的现代农业产业集群，加快构建现代化芒果产业体系，把盐边芒果产业打造成为全国芒果产业发展的标杆和巩固拓展脱贫攻坚成果同乡村振兴有效衔接的样板。",{"$nulls":3},{"v":1509,"d":"1509.00"},{"v":640,"d":"640.00"},null,640,null,null,869,"桐子林镇、红格镇、惠民镇"]